[Event "FRA-ch Youth 2017"]
[Site "Belfort"]
[Date "2017.04.22"]
[Round "8"]
[White "Papadiamandis, Elliot"]
[Black "Emmenecker, Pierre-Antoine"]
[Result "1/2-1/2"]
[ECO "C55"]
[WhiteElo "1944"]
[BlackElo "1737"]
[Annotator "NA"]
[PlyCount "103"]
[EventDate "2017.??.??"]
[EventCountry "FRA"]
[SourceTitle "playchess.com"]
[Source "ChessBase"]
[SourceQuality "1"]
[TimeControl "5400+30"]

1. e4 {[%emt 0:00:00]} e5 {[%emt 0:00:05]} 2. Nf3 {[%emt 0:00:00]} Nc6 {[%emt 0:00:05]} 3. Bc4 {[%emt 0:00:00]} Nf6 {[%emt 0:00:05]} 4. d3 {[%emt 0:00:14]} h6 {[%emt 0:00:11]} 5. c3 {[%emt 0:00:30]} d6 {[%emt 0:00:19]} 6. Bb3 {[%emt 0:00:28]} g6 {[%emt 0:01:26] LiveBook: 77 Games} 7. Nbd2 {[%emt 0:00:58]} Bg7 {[%emt 0:00:11]} 8. O-O {[%emt 0:00:18]} O-O {[%emt 0:00:13]} 9. Re1 {[%emt 0:01:32]} Re8 {[%emt 0:00:50]} 10. Nf1 {[%emt 0:03:04] C55: Two Knights: 4 d3, 4 d4 exd4 5 e5 and Max Lange Attack} Be6 {[%emt 0:00:18]} 11. Ng3 {[%emt 0:10:07]} a5 $146 {[%emt 0:01:28]} (11... d5 12. Ba4 Nd7 13. b4 dxe4 14. dxe4 a5 15. b5 Na7 16. Qe2 Nb6 17. Bb3 Qd7 18. Bxe6 Qxe6 {0-1 (79) Pridorozhni,A (2524)-Melkumyan,H (2628) Plovdiv 2012}) 12. h3 {[%emt 0:04:01]} Bxb3 {[%emt 0:00:21]} 13. Qxb3 {[%emt 0:00:11]} a4 {[%emt 0:00:28]} 14. Qd1 {[%emt 0:02:51]} d5 {[%emt 0:03:14]} 15. Qe2 {[%emt 0:02:58]} Qd7 {[%emt 0:06:58]} 16. Nh2 {[%emt 0:08:14]} b5 {[%emt 0:07:17]} 17. Qf3 {[%emt 0:07:43]} Kh7 {[%emt 0:05:07]} 18. Ng4 {[%emt 0:06:15]} Nxg4 {[%emt 0:01:34]} 19. hxg4 {[%emt 0:01:11]} d4 {[%emt 0:01:02]} 20. Ne2 {[%emt 0:14:49] [#]} Re7 {[%emt 0:02:29]} ({Black should play} 20... a3 $1 $17 {[%mdl 512]}) 21. g3 {[%emt 0:02:06]} Rd8 {[%emt 0:03:10]} 22. Rd1 {[%emt 0:02:54]} Qe6 {[%emt 0:11:44]} 23. Kg2 {[%emt 0:03:59]} (23. g5 $11) 23... Red7 {[%emt 0:02:20]} 24. g5 {[%emt 0:09:59]} h5 {[%emt 0:03:12]} 25. Bd2 {[%emt 0:05:25]} Bf8 {[%emt 0:16:14]} 26. Rac1 {[%emt 0:03:53]} Be7 {[%emt 0:06:45]} 27. c4 {[%emt 0:00:26]} b4 {[%emt 0:02:39]} 28. Rh1 {[%emt 0:00:58]} Kg7 {[%emt 0:00:19]} 29. Rh4 {[%emt 0:02:00]} Rh8 {[%emt 0:03:21]} 30. Ng1 {[%emt 0:01:49]} Rdd8 {[%emt 0:01:31]} 31. Qd1 {[%emt 0:00:29]} Ra8 {[%emt 0:00:15]} 32. f4 {[%emt 0:02:07]} Bc5 {[%emt 0:03:53]} ({Black should play} 32... f6 $11) 33. Qf3 {[%emt 0:01:11]} f5 {[%emt 0:05:01]} 34. gxf6+ {[%emt 0:01:50]} Qxf6 {[%emt 0:00:10]} 35. fxe5 {[%emt 0:01:32]} Nxe5 {[%emt 0:00:53]} 36. Qe2 $1 {[%emt 0:00:49]} Raf8 {[%emt 0:04:06]} 37. Rf4 {[%emt 0:00:25]} Qe6 {[%emt 0:00:07]} 38. Nh3 {[%emt 0:00:59]} Be7 {[%emt 0:01:20]} 39. Rcf1 {[%emt 0:00:33]} Rf6 {[%emt 0:02:16]} 40. Rxf6 {[%emt 0:00:11]} Bxf6 {[%emt 0:00:14]} 41. Bxb4 {[%emt 0:00:27]} Qb6 {[%emt 0:01:03]} 42. a3 $11 {[%emt 0:00:37]} Ng4 {[%emt 0:00:21]} 43. Rf3 {[%emt 0:00:31]} c5 {[%emt 0:00:36]} 44. Bd2 {[%emt 0:00:28]} Ne5 {[%emt 0:00:29]} 45. Rf1 {[%emt 0:00:12]} Qb3 {[%emt 0:00:14]} 46. Nf4 {[%emt 0:00:37]} Re8 {[%emt 0:03:18]} 47. Nd5 {[%emt 0:00:44]} Re6 {[%emt 0:01:11]} 48. Nf4 {[%emt 0:00:41]} Re8 {[%emt 0:00:10]} 49. Qf2 {[%emt 0:00:09]} Ng4 {[%emt 0:00:24]} 50. Qe2 {[%emt 0:00:45]} Ne5 {[%emt 0:00:42]} 51. Qf2 {[%emt 0:00:47]} Ng4 {[%emt 0:00:07]} 52. Qe2 1/2-1/2

[Event "FRA-ch Youth 2017"]
[Site "Belfort"]
[Date "2017.04.22"]
[Round "8"]
[White "Roux, Baptiste"]
[Black "Meillon, Judicael"]
[Result "0-1"]
[ECO "B50"]
[WhiteElo "1934"]
[BlackElo "1884"]
[Annotator "NA"]
[PlyCount "112"]
[EventDate "2017.??.??"]
[EventCountry "FRA"]
[SourceTitle "playchess.com"]
[Source "ChessBase"]
[SourceQuality "1"]
[TimeControl "5400+30"]

1. e4 {[%emt 0:00:00]} c5 {[%emt 0:00:03]} 2. Nf3 {[%emt 0:00:00]} d6 {[%emt 0:00:02]} 3. c3 {[%emt 0:00:00]} Nf6 {[%emt 0:00:05]} 4. h3 {[%emt 0:00:09]} Nc6 {[%emt 0:00:38]} 5. d4 {[%emt 0:00:13]} cxd4 {[%emt 0:00:07]} 6. cxd4 {[%emt 0:00:16]} Nxe4 {[%emt 0:01:59] B50: Sicilian: 2...d6, Miscellaneous} 7. d5 {[%emt 0:00:27]} Qa5+ {[%emt 0:00:36]} 8. Nc3 {[%emt 0:00:14]} Nxc3 {[%emt 0:00:41]} 9. bxc3 {[%emt 0:00:06]} Ne5 {[%emt 0:00:24]} 10. Nxe5 {[%emt 0:00:10]} (10. Qb3 Nd7 11. Be3 Qc7 12. Be2 Nf6 13. Bd4 g6 14. Bb5+ {½-½ (31) Okhotnik,V (2467)-Koepke,C (2404) Austria 2012}) 10... dxe5 {[%emt 0:02:13]} 11. Rb1 {[%emt 0:06:33]} a6 $146 {[%emt 0:04:34]} (11... Qxc3+ 12. Bd2 Qc7 13. Qb3 a6 14. Be2 {½-½ (66) Vujovic,M (2270)-Boehm,R Genova 1998}) 12. Be2 {[%emt 0:05:40]} g6 {[%emt 0:06:31]} 13. O-O {[%emt 0:02:42]} Bg7 {[%emt 0:03:19]} 14. d6 {[%emt 0:04:14]} exd6 {[%emt 0:01:37]} 15. Qxd6 {[%emt 0:00:13]} Qd8 {[%emt 0:00:46]} 16. Qa3 {[%emt 0:14:13]} Qe7 {[%emt 0:15:55]} 17. Bf3 {[%emt 0:15:24]} Qxa3 {[%emt 0:15:57]} 18. Bxa3 {[%emt 0:00:06]} Bf8 {[%emt 0:00:15]} 19. Bxf8 {[%emt 0:01:37]} ({Reject} 19. Bxb7 Bxb7 20. Bxf8 Bxg2 $15) 19... Kxf8 {[%emt 0:01:24]} 20. Bxb7 {[%emt 0:01:08]} Bxb7 {[%emt 0:00:07]} 21. Rxb7 {[%emt 0:00:05]} Kg7 {[%emt 0:00:08]} 22. Rd1 {[%emt 0:14:07]} Rhd8 {[%emt 0:02:25]} 23. Rxd8 {[%emt 0:04:10]} Rxd8 {[%emt 0:00:02]} 24. g3 {[%emt 0:12:11]} Rd6 {[%emt 0:02:28]} 25. Rb2 {[%emt 0:01:05]} Kf6 {[%emt 0:01:28]} 26. c4 $11 {[%emt 0:02:18]} Ke6 {[%emt 0:01:36]} 27. a4 {[%emt 0:00:42]} Rc6 {[%emt 0:01:32]} 28. Kf1 {[%emt 0:00:51]} Kd6 {[%emt 0:00:32]} 29. Ke2 {[%emt 0:05:25]} Rxc4 {[%emt 0:00:54]} 30. Rb6+ {[%emt 0:00:15]} Rc6 {[%emt 0:00:04]} 31. Rb7 {[%emt 0:00:22]} Ke6 {[%emt 0:01:37]} 32. Kd3 {[%emt 0:01:45]} h5 {[%emt 0:00:15]} 33. g4 {[%emt 0:01:42]} hxg4 {[%emt 0:01:00]} 34. hxg4 {[%emt 0:00:01]} f5 {[%emt 0:00:23]} 35. gxf5+ {[%emt 0:00:33]} gxf5 {[%emt 0:00:39]} 36. Rh7 {[%emt 0:00:21]} Kd5 {[%emt 0:00:26]} 37. f3 {[%emt 0:01:08]} Rb6 38. Rf7 {[%emt 0:02:04]} f4 {[%emt 0:01:37]} 39. Ra7 {[%emt 0:00:36]} Rb3+ {[%emt 0:01:03]} 40. Ke2 {[%emt 0:00:10]} Rb6 {[%emt 0:00:09]} 41. Kd3 {[%emt 0:00:05]} Kc5 {[%emt 0:00:45]} 42. Re7 {[%emt 0:03:21]} Rb3+ {[%emt 0:00:10]} 43. Kd2 {[%emt 0:02:10]} Re3 {[%emt 0:00:53]} 44. Re6 {[%emt 0:01:21]} a5 {[%emt 0:00:17]} 45. Rh6 {[%emt 0:00:43]} Rxf3 {[%emt 0:00:20]} 46. Rh1 {[%emt 0:00:46]} Kb4 {[%emt 0:00:18]} 47. Ra1 {[%emt 0:00:05]} Ra3 {[%emt 0:00:08]} 48. Re1 {[%emt 0:00:02]} Re3 {[%emt 0:00:20]} 49. Ra1 {[%emt 0:00:12]} e4 {[%emt 0:00:05]} 50. Rf1 {[%emt 0:00:19]} Rf3 {[%emt 0:00:12]} 51. Re1 {[%emt 0:00:33]} e3+ {[%emt 0:00:10]} 52. Kd3 {[%emt 0:00:17]} Rf2 {[%emt 0:00:20]} 53. Rb1+ {[%emt 0:00:33]} Kxa4 {[%emt 0:00:19]} 54. Ra1+ {[%emt 0:00:10]} Kb3 {[%emt 0:00:25]} 55. Rxa5 {[%emt 0:00:09]} Rd2+ {[%emt 0:00:05]} 56. Ke4 {[%emt 0:00:04]} e2 {Kd4} 0-1

[Event "FRA-ch Youth 2017"]
[Site "Belfort"]
[Date "2017.04.22"]
[Round "8"]
[White "Yuan, Beline"]
[Black "Labrande, Eleonore"]
[Result "1/2-1/2"]
[ECO "A43"]
[WhiteElo "1845"]
[BlackElo "1635"]
[Annotator "NA"]
[PlyCount "76"]
[EventDate "2017.??.??"]
[EventCountry "FRA"]
[SourceTitle "playchess.com"]
[Source "ChessBase"]
[SourceQuality "1"]
[TimeControl "5400+30"]

1. d4 {[%emt 0:00:00]} g6 {[%emt 0:00:20]} 2. c4 {[%emt 0:00:39]} Bg7 {[%emt 0:00:39]} 3. Nc3 {[%emt 0:01:03]} c5 {[%emt 0:00:30]} 4. d5 {[%emt 0:00:51]} Bxc3+ {[%emt 0:00:51]} 5. bxc3 {[%emt 0:00:52]} f5 {[%emt 0:00:39]} 6. Nf3 {[%emt 0:01:55]} Qa5 {[%emt 0:01:19]} 7. Qc2 {[%emt 0:01:49]} Nf6 {[%emt 0:01:07]} 8. e3 {[%emt 0:01:21] A40: Unusual replies to 1 d4} d6 {[%emt 0:01:33]} 9. Bd3 {[%emt 0:03:28] LiveBook: 5 Games} Nbd7 {[%emt 0:02:54]} 10. h3 {[%emt 0:01:12]} Ne5 $146 {[%emt 0:06:23]} (10... Nb6 11. O-O Qa4 12. Qe2 Bd7 13. Nd2 O-O-O 14. Bb2 e5 15. dxe6 Bxe6 {0-1 (28) Balokas,D (1997)-Hess,R (2588) Chalkis 2010}) 11. Be2 {[%emt 0:02:34]} O-O {[%emt 0:05:40]} 12. O-O {[%emt 0:09:04]} Ne4 {[%emt 0:05:42]} 13. Bb2 {[%emt 0:02:10]} Bd7 {[%emt 0:03:49]} 14. a4 {[%emt 0:01:15]} Rab8 {[%emt 0:06:18]} 15. Rfd1 {[%emt 0:04:04]} Nxf3+ {[%emt 0:07:15]} 16. gxf3 {[%emt 0:06:01]} Nf6 {[%emt 0:08:11]} 17. f4 {[%emt 0:05:11]} Ne4 {[%emt 0:04:08]} 18. Bd3 {[%emt 0:05:13]} Qd8 {[%emt 0:03:48]} 19. Kh2 {[%emt 0:01:33]} Nf6 {[%emt 0:02:25]} 20. Rg1 {[%emt 0:03:19]} Nh5 {[%emt 0:04:12]} 21. Rg5 {[%emt 0:04:55]} e5 $17 {[%emt 0:05:44]} 22. Rag1 {[%emt 0:05:27]} Kh8 {[%emt 0:02:34]} 23. fxe5 {[%emt 0:08:01]} dxe5 {[%emt 0:00:57]} 24. Be2 {[%emt 0:01:51]} Nf6 {[%emt 0:02:51]} 25. f3 {[%emt 0:00:57]} e4 {[%emt 0:02:40]} 26. f4 {[%emt 0:00:47]} Qe8 {[%emt 0:02:34]} 27. Ra1 {[%emt 0:03:49]} h6 {[%emt 0:02:54]} 28. Rg3 {[%emt 0:02:14]} Nh7 {[%emt 0:01:09]} 29. h4 {[%emt 0:03:09]} Qe7 {[%emt 0:01:17]} 30. Rh3 {[%emt 0:01:11]} Rg8 {[%emt 0:02:17]} 31. Rg1 {[%emt 0:03:20]} Rg7 {[%emt 0:02:32]} 32. Bd1 {[%emt 0:06:08]} Nf6 {[%emt 0:02:10]} 33. Ba3 {[%emt 0:01:27]} b6 {[%emt 0:01:32]} 34. Qd2 {[%emt 0:01:44]} Ng4+ {[%emt 0:01:07]} 35. Kh1 {[%emt 0:00:47]} h5 {[%emt 0:00:33]} 36. Rg2 {[%emt 0:03:13]} Qf6 {[%emt 0:01:22]} 37. Bb2 Be8 38. a5 bxa5 1/2-1/2

[Event "FRA-ch Youth 2017"]
[Site "Belfort"]
[Date "2017.04.22"]
[Round "8"]
[White "Candelot, Clement"]
[Black "Maugenest, Ghislain"]
[Result "1/2-1/2"]
[ECO "C06"]
[WhiteElo "1839"]
[BlackElo "1915"]
[Annotator "NA"]
[PlyCount "87"]
[EventDate "2017.??.??"]
[EventCountry "FRA"]
[SourceTitle "playchess.com"]
[Source "ChessBase"]
[SourceQuality "1"]
[TimeControl "5400+30"]

1. e4 {[%emt 0:00:00]} e6 {[%emt 0:00:02]} 2. d4 {[%emt 0:00:00]} d5 {[%emt 0:00:03]} 3. Nd2 {[%emt 0:00:04]} Nf6 {[%emt 0:00:06]} 4. e5 {[%emt 0:00:07]} Nfd7 {[%emt 0:00:03]} 5. Bd3 {[%emt 0:00:15]} c5 {[%emt 0:00:06]} 6. c3 {[%emt 0:00:42]} Nc6 {[%emt 0:00:07]} 7. Ne2 {[%emt 0:00:27]} cxd4 {[%emt 0:00:06]} 8. cxd4 {[%emt 0:01:33]} f6 {[%emt 0:00:10]} 9. exf6 {[%emt 0:01:03]} Nxf6 {[%emt 0:00:08]} 10. Nf3 {[%emt 0:00:29]} Bd6 {[%emt 0:00:23]} 11. Bf4 {[%emt 0:00:59] LiveBook: 68 Games} Qa5+ {[%emt 0:01:13]} 12. Bd2 {[%emt 0:03:20] C06: French Tarrasch: 3...Nf6 4 e5 Nfd7 5 Bd3 main lines} (12. Qd2 Qxd2+ 13. Kxd2 Bxf4+ 14. Nxf4 O-O 15. Ne2 Ng4 16. Rhf1 e5 17. dxe5 Ngxe5 18. Nxe5 Nxe5 19. Rae1 Nxd3 20. Kxd3 {½-½ (35) Obolenskikh,D (2540)-Volkov,S (2612) Pavlodar 2015}) 12... Qc7 {[%emt 0:00:18]} 13. Bg5 $146 {[%emt 0:02:11]} (13. O-O O-O 14. Ng3 Bd7 15. Re1 Rae8 16. a3 e5 17. dxe5 Nxe5 18. Nxe5 Bxe5 19. Rc1 Qb6 20. Be3 Qxb2 21. Re2 Qxa3 22. Bc5 {1-0 (38) Zierk,S (2493)-Orlov,G (2475) chess.com INT 2017}) 13... O-O {[%emt 0:00:54]} 14. Bh4 {[%emt 0:01:53]} Bb4+ {[%emt 0:07:21]} 15. Kf1 {[%emt 0:03:24]} e5 {[%emt 0:07:01]} 16. dxe5 {[%emt 0:12:28]} Nxe5 {[%emt 0:00:37]} 17. Rc1 {[%emt 0:00:33]} Qe7 {[%emt 0:05:08]} 18. Nf4 {[%emt 0:06:19]} Qd6 {[%emt 0:07:36]} 19. Bg3 {[%emt 0:04:05]} Nxf3 {[%emt 0:08:13]} 20. Qxf3 $4 {[%emt 0:16:55]} (20. gxf3 $11 {and White stays safe.} Qd7 21. a3) 20... Bg4 {[%emt 0:03:24]} 21. Qe3 {[%emt 0:01:45]} d4 {[%emt 0:03:06]} 22. Bc4+ {[%emt 0:00:10]} Kh8 {[%emt 0:00:29]} 23. Qd3 {[%emt 0:01:01]} Qd7 {[%emt 0:05:39]} 24. a3 {[%emt 0:03:21]} Ba5 {[%emt 0:00:40]} 25. f3 $2 {[%emt 0:04:18]} (25. Bb5 $17 {was necessary.} Rac8 26. Rb1 (26. Rxc8 $2 Qxc8 27. Qb1 Qc5 $19)) 25... Bf5 {[%emt 0:00:07]} 26. Qd1 {[%emt 0:00:35]} b5 {[%emt 0:02:28]} 27. Bd3 {[%emt 0:00:10]} Nd5 {[%emt 0:00:45]} 28. Nxd5 {[%emt 0:00:51]} Qxd5 {[%emt 0:00:14]} 29. Bxf5 {[%emt 0:01:22]} Rxf5 {[%emt 0:00:31]} 30. Qd3 {[%emt 0:02:34]} Rff8 {[%emt 0:03:26]} 31. b4 {[%emt 0:01:33]} Bb6 {[%emt 0:00:02]} 32. Be1 {[%emt 0:05:42]} Rac8 {[%emt 0:03:23]} 33. Bd2 {[%emt 0:01:33]} Rxc1+ {[%emt 0:02:19]} 34. Bxc1 {[%emt 0:00:03]} Re8 {[%emt 0:01:56]} 35. Kf2 {[%emt 0:04:24]} Qa2+ {[%emt 0:01:50]} 36. Kg3 {[%emt 0:04:19]} Re2 {[%emt 0:13:42]} 37. Rg1 {[%emt 0:01:15]} Qe6 {[%emt 0:03:39]} 38. Bf4 {[%emt 0:01:08]} Qg6+ {[%emt 0:01:47]} 39. Qxg6 {[%emt 0:00:06]} hxg6 {[%emt 0:00:01]} 40. Rd1 {[%emt 0:00:43]} Kg8 {[%emt 0:00:26]} 41. Rd2 {[%emt 0:07:00]} Re6 {[%emt 0:01:30]} 42. Kg4 {[%emt 0:01:57]} Kf7 {[%emt 0:00:28]} 43. Bg3 {[%emt 0:00:45]} Re3 {[%emt 0:09:53]} 44. Bf2 $11 {[%emt 0:00:14]} 1/2-1/2

[Event "FRA-ch Youth 2017"]
[Site "Belfort"]
[Date "2017.04.22"]
[Round "8"]
[White "Poulet, Benoit"]
[Black "Cohen Revivo, Shoham"]
[Result "0-1"]
[ECO "C11"]
[WhiteElo "1837"]
[BlackElo "2221"]
[Annotator "NA"]
[PlyCount "98"]
[EventDate "2017.??.??"]
[EventCountry "FRA"]
[SourceTitle "playchess.com"]
[Source "ChessBase"]
[SourceQuality "1"]
[TimeControl "5400+30"]

1. e4 {[%emt 0:00:00]} e6 {[%emt 0:00:12]} 2. d4 {[%emt 0:00:00]} d5 {[%emt 0:00:06]} 3. Nc3 {[%emt 0:00:02]} Nf6 {[%emt 0:00:06]} 4. Bg5 {[%emt 0:00:24]} dxe4 {[%emt 0:00:20]} 5. Nxe4 {[%emt 0:00:27]} Be7 {[%emt 0:00:12]} 6. Bxf6 {[%emt 0:00:29]} gxf6 {[%emt 0:00:08]} 7. Nf3 {[%emt 0:00:32]} f5 {[%emt 0:00:06]} 8. Nc3 {[%emt 0:00:20]} a6 {[%emt 0:00:05] C13: French: Classical System: 4 Bg5 Be7, Alekhine-Chatard Attack} 9. Qd2 {[%emt 0:00:59]} (9. Qe2 b5 10. O-O-O b4 11. Na4 Qd5 12. Kb1 Nd7 13. Qe3 Bb7 14. b3 Qe4 15. Qd2 Rg8 16. Rg1 {1-0 (70) Smirin,I (2670)-Gupta,A (2645) Moscow 2017}) 9... Qd6 {[%emt 0:00:41]} 10. Bc4 {[%emt 0:02:20]} b5 {[%emt 0:00:40]} 11. Bb3 {[%emt 0:03:33]} Nd7 {[%emt 0:01:06]} 12. O-O-O {[%emt 0:01:30]} c5 {[%emt 0:01:56]} 13. dxc5 {[%emt 0:04:19]} Qxd2+ {[%emt 0:00:14]} 14. Rxd2 {[%emt 0:02:39]} Nxc5 {[%emt 0:00:07]} 15. Rf1 $146 {[%emt 0:11:48]} (15. Kb1 Rg8 16. Rg1 {0-1 (23) Sameir,R (2070)-Ali Marandi,C (2473) Dubai 2016}) 15... Bb7 {[%emt 0:05:48]} 16. Ne1 {[%emt 0:00:24]} Bf6 {[%emt 0:03:02]} 17. Ne2 {[%emt 0:14:04]} Rc8 {[%emt 0:05:17]} 18. Kb1 {[%emt 0:03:18]} Ke7 {[%emt 0:05:09]} 19. f3 {[%emt 0:02:25]} a5 {[%emt 0:00:07]} 20. c3 {[%emt 0:02:54]} Rhd8 {[%emt 0:01:23]} 21. Rxd8 {[%emt 0:06:12]} Rxd8 {[%emt 0:00:03]} 22. Bc2 {[%emt 0:00:23]} b4 {[%emt 0:04:13]} 23. cxb4 {[%emt 0:04:32]} axb4 {[%emt 0:00:02]} 24. Rf2 {[%emt 0:00:22]} Ba6 {[%emt 0:05:39]} 25. Nc1 {[%emt 0:02:24]} f4 {[%emt 0:06:39]} 26. g3 {[%emt 0:16:01]} h5 {[%emt 0:04:06]} ({Don't do} 26... fxg3 27. hxg3 Rg8 28. Ned3 Bxd3 29. Bxd3) 27. Ng2 {[%emt 0:01:46]} fxg3 {[%emt 0:01:50]} 28. hxg3 {[%emt 0:00:07]} Rg8 {[%emt 0:03:52]} 29. Nf4 {[%emt 0:01:35]} Rxg3 {[%emt 0:01:49]} 30. Nxh5 {[%emt 0:00:43]} Rg1 {[%emt 0:00:15]} 31. Nxf6 {[%emt 0:00:32] [#]} Nd3 $1 {[%emt 0:00:50]} ({Less strong is} 31... Kxf6 32. Rd2 $17) 32. Ng8+ {[%emt 0:03:55]} Kf8 {[%emt 0:00:26]} 33. Bxd3 {[%emt 0:00:21]} Bxd3+ $19 {[%emt 0:00:10]} 34. Rc2 {[%emt 0:00:03]} Kxg8 {[%emt 0:00:39]} 35. b3 {[%emt 0:00:05]} Kg7 {[%emt 0:03:30]} 36. Kb2 {[%emt 0:00:05]} Bxc2 {[%emt 0:00:11]} 37. Kxc2 {[%emt 0:00:01]} Rg2+ {[%emt 0:00:51]} 38. Kd3 {[%emt 0:01:07]} Kf6 {[%emt 0:00:36]} 39. Ke3 {[%emt 0:03:23]} Rc2 {[%emt 0:00:57]} 40. Nd3 {[%emt 0:00:07]} Rxa2 {[%emt 0:00:06]} 41. Nxb4 {[%emt 0:00:04]} Rb2 {[%emt 0:00:10]} 42. Nd3 {[%emt 0:00:04]} Rxb3 {[%emt 0:00:11]} 43. Ke2 {[%emt 0:00:06]} Kf5 {[%emt 0:00:39]} 44. Ke3 {[%emt 0:00:55]} Rxd3+ {[%emt 0:01:44]} 45. Kxd3 {[%emt 0:00:09]} Kf4 {[%emt 0:00:04]} 46. Ke2 {[%emt 0:00:04]} f5 {[%emt 0:00:05]} 47. Kf2 {[%emt 0:00:04]} e5 {[%emt 0:00:05]} 48. Kg2 {[%emt 0:00:07]} Ke3 {[%emt 0:00:06]} 49. Kg3 {[%emt 0:00:02]} f4+ {[%emt 0:00:11]} 0-1

[Event "FRA-ch Youth 2017"]
[Site "Belfort"]
[Date "2017.04.22"]
[Round "8"]
[White "Bellahcene, Anissa"]
[Black "Retailleau, Elise"]
[Result "1-0"]
[ECO "B22"]
[WhiteElo "1806"]
[BlackElo "1946"]
[Annotator "NA"]
[PlyCount "61"]
[EventDate "2017.??.??"]
[EventCountry "FRA"]
[SourceTitle "playchess.com"]
[Source "ChessBase"]
[SourceQuality "1"]
[TimeControl "5400+30"]

1. e4 {[%emt 0:00:00]} c5 {[%emt 0:00:15]} 2. c3 {[%emt 0:00:00]} d5 {[%emt 0:00:19]} 3. exd5 {[%emt 0:00:06]} Qxd5 {[%emt 0:00:09]} 4. Na3 {[%emt 0:00:10] B22: Sicilian: 2 c3} (4. d4 e6 5. Nf3 Nf6 6. Na3 Qd8 7. Nc4 Be7 8. Bd3 Nbd7 9. O-O O-O 10. Bf4 b6 11. Nd6 Nh5 12. Be5 Nxe5 13. dxe5 Bxd6 14. exd6 Bb7 15. Re1 Nf6 16. Ne5 g6 17. Bb5 Qc8 {½-½ (61) Adhiban,B (2653)-Van Wely,L (2695) Wijk aan Zee 2017}) 4... Nf6 {[%emt 0:10:04]} 5. Nf3 {[%emt 0:00:31]} Nc6 {[%emt 0:02:13]} 6. Bc4 {[%emt 0:01:44]} Qe4+ {[%emt 0:04:09]} 7. Qe2 $146 {[%emt 0:04:43]} (7. Be2 $1 $14 Bg4 8. O-O O-O-O 9. Re1 Qd5 10. Nc2 e5 11. Ne3 Qd7 12. Nxg4 Nxg4 {1-0 (47) Michalczak,T (2367)-Barskij,A (2000) Dortmund 2010}) 7... Bg4 {[%emt 0:05:40]} 8. Bxf7+ {[%emt 0:03:40]} Kxf7 {[%emt 0:09:25]} 9. Ng5+ {[%emt 0:00:05]} Kg6 {[%emt 0:01:49]} 10. Qxe4+ {[%emt 0:00:19]} Nxe4 {[%emt 0:00:21]} 11. Nxe4 {[%emt 0:00:05]} Bf5 {[%emt 0:01:04]} 12. f3 {[%emt 0:06:26]} Ne5 {[%emt 0:06:36]} 13. d4 {[%emt 0:07:03]} cxd4 {[%emt 0:02:32]} 14. cxd4 {[%emt 0:00:09]} Nc6 {[%emt 0:01:24]} 15. Be3 {[%emt 0:11:00]} Rd8 {[%emt 0:03:09]} 16. Rd1 {[%emt 0:06:14]} e5 {[%emt 0:08:18]} 17. Nc2 {[%emt 0:03:33]} b6 {[%emt 0:07:53]} 18. Ke2 {[%emt 0:13:47]} Bd6 {[%emt 0:06:51]} (18... exd4 $142 19. Nxd4 Nxd4+ 20. Rxd4 Rxd4 21. Bxd4 Bb4) 19. d5 {[%emt 0:04:14]} Ne7 {[%emt 0:02:58]} 20. g4 {[%emt 0:00:39]} Bc8 {[%emt 0:01:05] [#]} 21. Bg5 $1 {[%emt 0:05:12]} Rd7 {[%emt 0:03:38]} 22. Nxd6 $18 {[%emt 0:01:10]} Kxg5 {[%emt 0:01:23]} 23. Nf7+ {[%emt 0:00:04]} Kf6 {[%emt 0:00:27]} 24. Nxh8 {[%emt 0:00:21]} Nxd5 {[%emt 0:00:45]} 25. Kf2 {[%emt 0:04:15]} Rc7 {[%emt 0:03:00]} 26. Ne3 {[%emt 0:01:58]} Nxe3 {[%emt 0:01:03]} 27. Kxe3 {[%emt 0:00:05]} Rc2 {[%emt 0:00:06]} 28. Rc1 {[%emt 0:00:39]} Rxc1 {[%emt 0:00:46]} 29. Rxc1 {[%emt 0:00:04]} Be6 {[%emt 0:00:09]} 30. Rc6 {[%emt 0:00:21]} Ke7 {[%emt 0:00:37]} 31. Rc7+ {[%emt 0:00:13]} 1-0